[Event "Titled Tuesday Blitz August 3 2021"]
[White "Leve, Nitai"]
[Black "Todev, Simeon"]
[WhiteFideId "2006898"]
[BlackFideId "2925133"]
[WhiteElo "2144"]
[BlackElo "1818"]
[Result "0-1"]
[Round "11"]
[TimeControl "180+1"]
[Date "2021.08.03"]
[WhiteClock "0:00:07"]
[BlackClock "0:00:03"]

1. e4 {[%clk 0:03:00]}  c5 {[%clk 0:02:52]} 2. Nf3 {[%clk 0:03:00]}  Nc6 {[%clk 0:02:52]} 3. d4 {[%clk 0:03:00]}  cxd4 {[%clk 0:02:53]} 4. Nxd4 {[%clk 0:03:00]}  e5 {[%clk 0:02:54]} 5. Nb3 {[%clk 0:03:00]}  Nf6 {[%clk 0:02:54]} 6. Nc3 {[%clk 0:03:01]}  Bb4 {[%clk 0:02:53]} 7. Bc4 {[%clk 0:03:01]}  O-O {[%clk 0:02:50]} 8. O-O {[%clk 0:03:01]}  Bxc3 {[%clk 0:02:49]} 9. bxc3 {[%clk 0:03:02]}  Nxe4 {[%clk 0:02:47]} 10. Ba3 {[%clk 0:03:02]}  d6 {[%clk 0:02:41]} 11. Qd3 {[%clk 0:03:02]}  Bf5 {[%clk 0:02:38]} 12. Rae1 {[%clk 0:03:02]}  Qc7 {[%clk 0:01:58]} 13. Rxe4 {[%clk 0:02:42]}  Bxe4 {[%clk 0:01:56]} 14. Qxe4 {[%clk 0:02:43]}  Rad8 {[%clk 0:01:50]} 15. Rd1 {[%clk 0:02:36]}  Ne7 {[%clk 0:01:38]} 16. Qe2 {[%clk 0:02:32]}  Rfe8 {[%clk 0:01:28]} 17. Bb2 {[%clk 0:01:56]}  a6 {[%clk 0:01:23]} 18. Bd5 {[%clk 0:01:49]}  Nxd5 {[%clk 0:01:17]} 19. Rxd5 {[%clk 0:01:50]}  Qc6 {[%clk 0:01:17]} 20. c4 {[%clk 0:01:45]}  Rc8 {[%clk 0:01:07]} 21. Nd2 {[%clk 0:01:32]}  Qa4 {[%clk 0:00:58]} 22. Qd3 {[%clk 0:01:07]}  Qxa2 {[%clk 0:00:40]} 23. Bc3 {[%clk 0:00:52]}  Qa3 {[%clk 0:00:34]} 24. h4 {[%clk 0:00:46]}  b5 {[%clk 0:00:22]} 25. h5 {[%clk 0:00:20]}  b4 {[%clk 0:00:17]} 26. Rxd6 {[%clk 0:00:09]}  Qxc3 {[%clk 0:00:16]} 27. Qd5 {[%clk 0:00:09]}  Qd4 {[%clk 0:00:07]} 28. Qxd4 {[%clk 0:00:06]}  exd4 {[%clk 0:00:08]} 29. Rxa6 {[%clk 0:00:05]}  Re2 {[%clk 0:00:07]} 30. Nb3 {[%clk 0:00:04]}  Rxc2 {[%clk 0:00:07]} 31. Nxd4 {[%clk 0:00:04]}  R2xc4 {[%clk 0:00:07]} 32. Nf5 {[%clk 0:00:03]}  Rd8 {[%clk 0:00:03]} 33. Rb6 {[%clk 0:00:03]}  Rc1+ {[%clk 0:00:02]} 34. Kh2 {[%clk 0:00:04]}  Rc5 {[%clk 0:00:03]} 35. g4 {[%clk 0:00:03]}  g6 {[%clk 0:00:03]} 36. hxg6 {[%clk 0:00:03]}  hxg6 {[%clk 0:00:04]} 37. Ne3 {[%clk 0:00:03]}  b3 {[%clk 0:00:02]} 38. Rxb3 {[%clk 0:00:03]}  Re5 {[%clk 0:00:03]} 39. Kg3 {[%clk 0:00:03]}  Rd4 {[%clk 0:00:03]} 40. f4 {[%clk 0:00:03]}  Re8 {[%clk 0:00:03]} 41. Ng2 {[%clk 0:00:03]}  Rde4 {[%clk 0:00:03]} 42. Rf3 {[%clk 0:00:03]}  Kg7 {[%clk 0:00:04]} 43. f5 {[%clk 0:00:03]}  g5 {[%clk 0:00:03]} 44. f6+ {[%clk 0:00:03]}  Kg6 {[%clk 0:00:04]} 45. Rf5 {[%clk 0:00:03]}  Rd4 {[%clk 0:00:02]} 46. Kh2 {[%clk 0:00:03]}  Re2 {[%clk 0:00:02]} 47. Kg3 {[%clk 0:00:03]}  Rd3+ {[%clk 0:00:02]} 48. Rf3 {[%clk 0:00:03]}  Rxf3+ {[%clk 0:00:02]} 49. Kxf3 {[%clk 0:00:04]}  Re6 {[%clk 0:00:02]} 50. Ne3 {[%clk 0:00:04]}  Rxf6+ {[%clk 0:00:03]} 51. Kg3 {[%clk 0:00:05]}  Re6 {[%clk 0:00:04]} 52. Nd5 {[%clk 0:00:05]}  Rd6 {[%clk 0:00:04]} 53. Ne7+ {[%clk 0:00:06]}  Kf6 {[%clk 0:00:04]} 54. Nf5 {[%clk 0:00:06]}  Rd3+ {[%clk 0:00:04]} 55. Kf2 {[%clk 0:00:07]}  Ke5 {[%clk 0:00:04]} 56. Ne7 {[%clk 0:00:06]}  Kf4 {[%clk 0:00:03]} 57. Nc6 {[%clk 0:00:07]}  Rd2+ {[%clk 0:00:04]} 58. Ke1 {[%clk 0:00:07]}  Ra2 {[%clk 0:00:04]} 59. Nd8 {[%clk 0:00:07]}  Ke3 {[%clk 0:00:04]} 60. Kf1 {[%clk 0:00:07]}  f6 {[%clk 0:00:03]} 61. Ne6 {[%clk 0:00:06]}  Kf3 {[%clk 0:00:04]} 62. Nd4+ {[%clk 0:00:06]}  Kxg4 {[%clk 0:00:04]} 63. Ne2 {[%clk 0:00:06]}  Rxe2 {[%clk 0:00:02]} 64. Kxe2 {[%clk 0:00:07]}  Kg3 {[%clk 0:00:03]} 0-1


[Site "https://www.chess.com"]

[Event "Titled Tuesday Blitz August 3 2021"]
[White "Liyanage, Ranindu Dilshan"]
[Black "Zhuravlev, Alexey"]
[WhiteFideId "9915834"]
[BlackFideId "4164199"]
[WhiteElo "1839"]
[BlackElo "2483"]
[Result "0-1"]
[Round "11"]
[TimeControl "180+1"]
[Date "2021.08.03"]
[WhiteClock "0:00:05"]
[BlackClock "0:00:09"]

1. e4 {[%clk 0:03:00]}  c6 {[%clk 0:02:59]} 2. d4 {[%clk 0:03:00]}  d5 {[%clk 0:03:00]} 3. e5 {[%clk 0:03:00]}  Bf5 {[%clk 0:03:00]} 4. Nd2 {[%clk 0:03:00]}  e6 {[%clk 0:02:58]} 5. Nb3 {[%clk 0:03:01]}  Nd7 {[%clk 0:02:56]} 6. Nf3 {[%clk 0:03:00]}  Ne7 {[%clk 0:02:51]} 7. Be2 {[%clk 0:02:54]}  Qc7 {[%clk 0:02:43]} 8. O-O {[%clk 0:02:51]}  c5 {[%clk 0:02:43]} 9. dxc5 {[%clk 0:02:50]}  Nc6 {[%clk 0:02:38]} 10. Be3 {[%clk 0:02:49]}  Ndxe5 {[%clk 0:02:32]} 11. Nxe5 {[%clk 0:02:44]}  Qxe5 {[%clk 0:02:32]} 12. Bb5 {[%clk 0:02:43]}  Qc7 {[%clk 0:02:02]} 13. Nd4 {[%clk 0:02:36]}  Bg6 {[%clk 0:02:02]} 14. c4 {[%clk 0:02:35]}  dxc4 {[%clk 0:01:59]} 15. Qf3 {[%clk 0:02:27]}  Rc8 {[%clk 0:01:44]} 16. Bf4 {[%clk 0:02:18]}  Qa5 {[%clk 0:01:39]} 17. Nxc6 {[%clk 0:02:15]}  Qxb5 {[%clk 0:01:38]} 18. Nxa7 {[%clk 0:02:15]}  Qxc5 {[%clk 0:01:38]} 19. Nxc8 {[%clk 0:02:07]}  Qxc8 {[%clk 0:01:39]} 20. Rac1 {[%clk 0:02:07]}  b5 {[%clk 0:01:32]} 21. b3 {[%clk 0:02:00]}  Ba3 {[%clk 0:01:31]} 22. Rcd1 {[%clk 0:01:20]}  c3 {[%clk 0:01:29]} 23. Bc1 {[%clk 0:01:17]}  Be7 {[%clk 0:01:26]} 24. Qe2 {[%clk 0:01:01]}  Qc6 {[%clk 0:01:16]} 25. Rd4 {[%clk 0:00:51]}  O-O {[%clk 0:01:12]} 26. Rfd1 {[%clk 0:00:50]}  h6 {[%clk 0:01:08]} 27. a4 {[%clk 0:00:38]}  bxa4 {[%clk 0:00:57]} 28. Rxa4 {[%clk 0:00:37]}  Bf6 {[%clk 0:00:51]} 29. Ba3 {[%clk 0:00:29]}  Rb8 {[%clk 0:00:49]} 30. Rc4 {[%clk 0:00:25]}  Qb5 {[%clk 0:00:46]} 31. Bb4 {[%clk 0:00:17]}  c2 {[%clk 0:00:42]} 32. Rc1 {[%clk 0:00:15]}  Kh7 {[%clk 0:00:39]} 33. R1xc2 {[%clk 0:00:15]}  Bxc2 {[%clk 0:00:39]} 34. Qxc2+ {[%clk 0:00:16]}  g6 {[%clk 0:00:39]} 35. g3 {[%clk 0:00:15]}  Kg7 {[%clk 0:00:36]} 36. Qe4 {[%clk 0:00:13]}  Rd8 {[%clk 0:00:33]} 37. Qf3 {[%clk 0:00:11]}  Rd5 {[%clk 0:00:30]} 38. Rf4 {[%clk 0:00:11]}  Rf5 {[%clk 0:00:25]} 39. Bc3 {[%clk 0:00:11]}  Rxf4 {[%clk 0:00:20]} 40. gxf4 {[%clk 0:00:12]}  Bxc3 {[%clk 0:00:19]} 41. Qxc3+ {[%clk 0:00:13]}  Kg8 {[%clk 0:00:19]} 42. Qc8+ {[%clk 0:00:13]}  Kg7 {[%clk 0:00:19]} 43. Qc3+ {[%clk 0:00:13]}  Kg8 {[%clk 0:00:19]} 44. b4 {[%clk 0:00:14]}  Qe2 {[%clk 0:00:17]} 45. Qd4 {[%clk 0:00:10]}  h5 {[%clk 0:00:15]} 46. Kg2 {[%clk 0:00:04]}  h4 {[%clk 0:00:14]} 47. Qd8+ {[%clk 0:00:04]}  Kg7 {[%clk 0:00:14]} 48. Qxh4 {[%clk 0:00:05]}  Qe4+ {[%clk 0:00:14]} 49. Kg1 {[%clk 0:00:05]}  Qxb4 {[%clk 0:00:14]} 50. Qg3 {[%clk 0:00:06]}  Qe4 {[%clk 0:00:13]} 51. Qe3 {[%clk 0:00:05]}  Qb1+ {[%clk 0:00:13]} 52. Kg2 {[%clk 0:00:05]}  Qb7+ {[%clk 0:00:13]} 53. Kg3 {[%clk 0:00:05]}  Kh7 {[%clk 0:00:10]} 54. h3 {[%clk 0:00:05]}  Qh1 {[%clk 0:00:10]} 55. Qc3 {[%clk 0:00:05]}  Qg1+ {[%clk 0:00:10]} 56. Kf3 {[%clk 0:00:05]}  Qh1+ {[%clk 0:00:09]} 57. Kg3 {[%clk 0:00:05]}  Qg1+ {[%clk 0:00:09]} 58. Kf3 {[%clk 0:00:05]}  Qh2 {[%clk 0:00:10]} 59. Ke2 {[%clk 0:00:05]}  Qxf4 {[%clk 0:00:10]} 60. Qc4 {[%clk 0:00:05]}  Qxc4+ {[%clk 0:00:09]} 0-1


[Site "https://www.chess.com"]

[Event "Titled Tuesday Blitz August 3 2021"]
[White "Ljukin, Sergei"]
[Black "Firat, Burak"]
[WhiteFideId "14102200"]
[BlackFideId "6305881"]
[WhiteElo "2309"]
[BlackElo "2531"]
[Result "1-0"]
[Round "11"]
[TimeControl "180+1"]
[Date "2021.08.03"]
[WhiteClock "0:00:45"]
[BlackClock "0:00:10"]

1. e4 {[%clk 0:03:00]}  d5 {[%clk 0:02:59]} 2. exd5 {[%clk 0:03:00]}  Qxd5 {[%clk 0:03:00]} 3. Nc3 {[%clk 0:03:00]}  Qd8 {[%clk 0:03:01]} 4. d4 {[%clk 0:03:00]}  Nf6 {[%clk 0:03:01]} 5. Nf3 {[%clk 0:03:01]}  e6 {[%clk 0:03:02]} 6. Bg5 {[%clk 0:02:58]}  Be7 {[%clk 0:03:01]} 7. Bd3 {[%clk 0:02:58]}  a6 {[%clk 0:03:01]} 8. Qe2 {[%clk 0:02:58]}  b5 {[%clk 0:03:00]} 9. O-O-O {[%clk 0:02:58]}  Bb7 {[%clk 0:03:00]} 10. Rhe1 {[%clk 0:02:58]}  O-O {[%clk 0:02:55]} 11. h4 {[%clk 0:02:51]}  Nbd7 {[%clk 0:02:55]} 12. Ne4 {[%clk 0:02:51]}  h6 {[%clk 0:02:47]} 13. Bd2 {[%clk 0:02:44]}  Nb6 {[%clk 0:02:32]} 14. Ne5 {[%clk 0:02:40]}  Qd5 {[%clk 0:02:27]} 15. Nc3 {[%clk 0:02:29]}  Qxd4 {[%clk 0:02:14]} 16. Bxh6 {[%clk 0:02:27]}  Qc5 {[%clk 0:01:42]} 17. Bg5 {[%clk 0:02:17]}  Nbd5 {[%clk 0:01:34]} 18. Nxd5 {[%clk 0:02:07]}  Bxd5 {[%clk 0:01:35]} 19. Bxf6 {[%clk 0:01:48]}  Bxf6 {[%clk 0:01:36]} 20. Nd7 {[%clk 0:01:48]}  Bxb2+ {[%clk 0:01:05]} 21. Kxb2 {[%clk 0:01:42]}  Qb4+ {[%clk 0:01:05]} 22. Kc1 {[%clk 0:01:42]}  Qa3+ {[%clk 0:01:02]} 23. Kd2 {[%clk 0:01:41]}  Rfd8 {[%clk 0:01:02]} 24. Ne5 {[%clk 0:01:36]}  f6 {[%clk 0:00:55]} 25. Ng6 {[%clk 0:01:32]}  Bc4 {[%clk 0:00:46]} 26. Qe4 {[%clk 0:01:01]}  Kf7 {[%clk 0:00:25]} 27. Nf4 {[%clk 0:00:54]}  e5 {[%clk 0:00:25]} 28. Qg6+ {[%clk 0:00:51]}  Kf8 {[%clk 0:00:22]} 29. Nh5 {[%clk 0:00:48]}  Bxd3 {[%clk 0:00:10]} 30. Qxg7+ {[%clk 0:00:45]}  Ke8 {[%clk 0:00:10]} 31. Nxf6# {[%clk 0:00:45]} 1-0


[Site "https://www.chess.com"]

[Event "Titled Tuesday Blitz August 3 2021"]
[White "Maly, Alexey"]
[Black "Indjic, Aleksandar"]
[WhiteFideId "14103184"]
[BlackFideId "911925"]
[WhiteElo "2285"]
[BlackElo "2643"]
[Result "0-1"]
[Round "11"]
[TimeControl "180+1"]
[Date "2021.08.03"]
[WhiteClock "0:00:01"]
[BlackClock "0:00:46"]

1. d4 {[%clk 0:03:00]}  Nf6 {[%clk 0:03:00]} 2. c4 {[%clk 0:03:01]}  c5 {[%clk 0:03:01]} 3. d5 {[%clk 0:03:00]}  e6 {[%clk 0:03:01]} 4. Nc3 {[%clk 0:03:00]}  exd5 {[%clk 0:03:02]} 5. cxd5 {[%clk 0:03:01]}  d6 {[%clk 0:03:02]} 6. Nf3 {[%clk 0:03:01]}  g6 {[%clk 0:03:02]} 7. Nd2 {[%clk 0:03:01]}  Bg7 {[%clk 0:03:02]} 8. g3 {[%clk 0:03:02]}  O-O {[%clk 0:03:01]} 9. Bg2 {[%clk 0:03:03]}  Re8 {[%clk 0:03:00]} 10. O-O {[%clk 0:03:02]}  a6 {[%clk 0:03:00]} 11. a4 {[%clk 0:03:01]}  Nbd7 {[%clk 0:03:00]} 12. h3 {[%clk 0:03:00]}  Rb8 {[%clk 0:02:52]} 13. Nc4 {[%clk 0:02:55]}  Ne5 {[%clk 0:02:52]} 14. Na3 {[%clk 0:02:54]}  Nh5 {[%clk 0:02:45]} 15. Kh2 {[%clk 0:02:52]}  f5 {[%clk 0:02:40]} 16. f4 {[%clk 0:02:44]}  Nf7 {[%clk 0:02:38]} 17. Nc4 {[%clk 0:02:41]}  Bd7 {[%clk 0:02:22]} 18. a5 {[%clk 0:02:37]}  Bb5 {[%clk 0:02:22]} 19. Qb3 {[%clk 0:02:32]}  Bxc4 {[%clk 0:02:18]} 20. Qxc4 {[%clk 0:02:33]}  Bd4 {[%clk 0:02:16]} 21. Bf3 {[%clk 0:02:27]}  Nf6 {[%clk 0:02:15]} 22. Bd2 {[%clk 0:02:23]}  Be3 {[%clk 0:02:10]} 23. Be1 {[%clk 0:02:15]}  Nd7 {[%clk 0:02:06]} 24. Na4 {[%clk 0:02:10]}  Bd4 {[%clk 0:02:02]} 25. Rb1 {[%clk 0:02:02]}  b5 {[%clk 0:02:01]} 26. axb6 {[%clk 0:01:59]}  Nxb6 {[%clk 0:02:01]} 27. Qxa6 {[%clk 0:01:38]}  Nxa4 {[%clk 0:02:01]} 28. Qxa4 {[%clk 0:01:38]}  Rxb2 {[%clk 0:02:00]} 29. Rxb2 {[%clk 0:01:37]}  Bxb2 {[%clk 0:02:01]} 30. Ba5 {[%clk 0:01:26]}  Qe7 {[%clk 0:02:00]} 31. Rb1 {[%clk 0:01:23]}  Bd4 {[%clk 0:02:00]} 32. Bd2 {[%clk 0:01:11]}  h5 {[%clk 0:01:54]} 33. Qc6 {[%clk 0:01:03]}  Nd8 {[%clk 0:01:39]} 34. Qc8 {[%clk 0:00:56]}  Nf7 {[%clk 0:01:39]} 35. Qc6 {[%clk 0:00:56]}  h4 {[%clk 0:01:34]} 36. Rb7 {[%clk 0:00:52]}  hxg3+ {[%clk 0:01:30]} 37. Kxg3 {[%clk 0:00:53]}  Qf8 {[%clk 0:01:26]} 38. Qd7 {[%clk 0:00:47]}  Bf6 {[%clk 0:01:24]} 39. Qb5 {[%clk 0:00:24]}  Kg7 {[%clk 0:01:22]} 40. Kg2 {[%clk 0:00:18]}  Rc8 {[%clk 0:01:01]} 41. Qc4 {[%clk 0:00:14]}  Rb8 {[%clk 0:00:59]} 42. Rxb8 {[%clk 0:00:11]}  Qxb8 {[%clk 0:01:00]} 43. e4 {[%clk 0:00:11]}  Qb2 {[%clk 0:01:00]} 44. Qe2 {[%clk 0:00:11]}  c4 {[%clk 0:00:58]} 45. exf5 {[%clk 0:00:05]}  gxf5 {[%clk 0:00:59]} 46. Be1 {[%clk 0:00:04]}  c3 {[%clk 0:00:58]} 47. Kg3 {[%clk 0:00:03]}  c2 {[%clk 0:00:57]} 48. Bh5 {[%clk 0:00:03]}  c1=Q {[%clk 0:00:56]} 49. Qe6 {[%clk 0:00:03]}  Bh4+ {[%clk 0:00:48]} 50. Kxh4 {[%clk 0:00:03]}  Qxf4+ {[%clk 0:00:46]} 51. Bg4 {[%clk 0:00:01]}  Qf6+ {[%clk 0:00:46]} 0-1


[Site "https://www.chess.com"]

[Event "Titled Tuesday Blitz August 3 2021"]
[White "Mekhitarian, Krikor Sevag"]
[Black "Babiy, Olga"]
[WhiteFideId "2107660"]
[BlackFideId "14117258"]
[WhiteElo "2598"]
[BlackElo "2230"]
[Result "1-0"]
[Round "11"]
[TimeControl "180+1"]
[Date "2021.08.03"]
[WhiteClock "0:00:08"]
[BlackClock "0:00:03"]

1. e4 {[%clk 0:03:00]}  d6 {[%clk 0:03:00]} 2. d4 {[%clk 0:02:59]}  Nf6 {[%clk 0:03:00]} 3. Nc3 {[%clk 0:02:59]}  e5 {[%clk 0:03:00]} 4. Nf3 {[%clk 0:02:57]}  Nbd7 {[%clk 0:03:00]} 5. g4 {[%clk 0:02:55]}  Nxg4 {[%clk 0:02:53]} 6. Rg1 {[%clk 0:02:55]}  Ngf6 {[%clk 0:02:52]} 7. Be3 {[%clk 0:02:54]}  c6 {[%clk 0:02:46]} 8. Qd2 {[%clk 0:02:49]}  b5 {[%clk 0:02:44]} 9. Bd3 {[%clk 0:02:48]}  Bb7 {[%clk 0:02:35]} 10. O-O-O {[%clk 0:02:46]}  Qa5 {[%clk 0:02:33]} 11. Kb1 {[%clk 0:02:46]}  h6 {[%clk 0:02:20]} 12. a3 {[%clk 0:02:33]}  O-O-O {[%clk 0:02:11]} 13. Qe1 {[%clk 0:02:23]}  Kb8 {[%clk 0:02:08]} 14. Bd2 {[%clk 0:02:16]}  Qc7 {[%clk 0:02:07]} 15. d5 {[%clk 0:02:12]}  a6 {[%clk 0:02:01]} 16. dxc6 {[%clk 0:02:02]}  Bxc6 {[%clk 0:02:02]} 17. Bc1 {[%clk 0:01:57]}  Qb7 {[%clk 0:01:30]} 18. Nd2 {[%clk 0:01:51]}  Nc5 {[%clk 0:01:27]} 19. f3 {[%clk 0:01:50]}  a5 {[%clk 0:01:26]} 20. Na2 {[%clk 0:01:27]}  g5 {[%clk 0:01:16]} 21. Nb3 {[%clk 0:01:25]}  Nxb3 {[%clk 0:01:04]} 22. cxb3 {[%clk 0:01:25]}  a4 {[%clk 0:00:45]} 23. Nb4 {[%clk 0:01:24]}  Bd7 {[%clk 0:00:43]} 24. Be3 {[%clk 0:01:19]}  axb3 {[%clk 0:00:41]} 25. Rc1 {[%clk 0:01:19]}  Rc8 {[%clk 0:00:39]} 26. Qd2 {[%clk 0:00:57]}  Be7 {[%clk 0:00:39]} 27. Be2 {[%clk 0:00:54]}  Rxc1+ {[%clk 0:00:38]} 28. Rxc1 {[%clk 0:00:54]}  Rc8 {[%clk 0:00:39]} 29. Rd1 {[%clk 0:00:48]}  Be6 {[%clk 0:00:37]} 30. Rc1 {[%clk 0:00:41]}  Bc4 {[%clk 0:00:33]} 31. Bxc4 {[%clk 0:00:34]}  bxc4 {[%clk 0:00:34]} 32. h4 {[%clk 0:00:34]}  gxh4 {[%clk 0:00:30]} 33. Bxh6 {[%clk 0:00:34]}  Nd7 {[%clk 0:00:26]} 34. Nd5 {[%clk 0:00:31]}  Bd8 {[%clk 0:00:22]} 35. Be3 {[%clk 0:00:31]}  Qc6 {[%clk 0:00:13]} 36. Nb4 {[%clk 0:00:29]}  Qb5 {[%clk 0:00:07]} 37. Qxd6+ {[%clk 0:00:28]}  Bc7 {[%clk 0:00:07]} 38. Qe7 {[%clk 0:00:14]}  Nb6 {[%clk 0:00:06]} 39. Qxf7 {[%clk 0:00:11]}  Na4 {[%clk 0:00:03]} 40. Rxc4 {[%clk 0:00:08]} 1-0


[Site "https://www.chess.com"]

[Event "Titled Tuesday Blitz August 3 2021"]
[White "Mirzoev, Azer"]
[Black "Harshavardhan G B"]
[WhiteFideId "13400304"]
[BlackFideId "25059009"]
[WhiteElo "2525"]
[BlackElo "1825"]
[Result "1-0"]
[Round "11"]
[TimeControl "180+1"]
[Date "2021.08.03"]
[WhiteClock "0:00:39"]
[BlackClock "0:00:39"]

1. d4 {[%clk 0:02:59]}  Nf6 {[%clk 0:02:55]} 2. Nf3 {[%clk 0:02:59]}  g6 {[%clk 0:02:55]} 3. g3 {[%clk 0:02:58]}  Bg7 {[%clk 0:02:54]} 4. Bg2 {[%clk 0:02:59]}  O-O {[%clk 0:02:54]} 5. O-O {[%clk 0:03:00]}  c5 {[%clk 0:02:55]} 6. c3 {[%clk 0:02:56]}  d5 {[%clk 0:02:51]} 7. Ne5 {[%clk 0:02:45]}  Nc6 {[%clk 0:02:48]} 8. Nxc6 {[%clk 0:02:45]}  bxc6 {[%clk 0:02:49]} 9. dxc5 {[%clk 0:02:46]}  a5 {[%clk 0:02:46]} 10. c4 {[%clk 0:02:45]}  e6 {[%clk 0:02:45]} 11. Nc3 {[%clk 0:02:43]}  Nd7 {[%clk 0:02:43]} 12. Na4 {[%clk 0:02:40]}  Qe7 {[%clk 0:02:41]} 13. Be3 {[%clk 0:02:37]}  Ba6 {[%clk 0:02:39]} 14. cxd5 {[%clk 0:02:36]}  exd5 {[%clk 0:02:40]} 15. Re1 {[%clk 0:02:17]}  Rab8 {[%clk 0:02:35]} 16. Rc1 {[%clk 0:02:11]}  Bxb2 {[%clk 0:02:30]} 17. Nxb2 {[%clk 0:02:10]}  Rxb2 {[%clk 0:02:31]} 18. Qa4 {[%clk 0:02:07]}  Bb5 {[%clk 0:02:24]} 19. Qxa5 {[%clk 0:02:07]}  Ne5 {[%clk 0:02:17]} 20. Bd4 {[%clk 0:02:02]}  Rxe2 {[%clk 0:02:15]} 21. Rxe2 {[%clk 0:01:55]}  Bxe2 {[%clk 0:02:16]} 22. Qc3 {[%clk 0:01:53]}  Nc4 {[%clk 0:01:39]} 23. Re1 {[%clk 0:01:47]}  Rb8 {[%clk 0:01:37]} 24. Bf1 {[%clk 0:01:33]}  Rb2 {[%clk 0:01:36]} 25. Qxb2 {[%clk 0:01:32]}  Nxb2 {[%clk 0:01:34]} 26. Rxe2 {[%clk 0:01:32]}  Qd8 {[%clk 0:01:31]} 27. Bxb2 {[%clk 0:01:29]}  f5 {[%clk 0:01:28]} 28. Re6 {[%clk 0:01:19]}  Qd7 {[%clk 0:01:26]} 29. Rd6 {[%clk 0:01:17]}  Qb7 {[%clk 0:01:25]} 30. Be5 {[%clk 0:01:14]}  Kf7 {[%clk 0:01:22]} 31. a4 {[%clk 0:01:09]}  Qe7 {[%clk 0:01:21]} 32. Bf4 {[%clk 0:01:09]}  Qb7 {[%clk 0:01:18]} 33. h4 {[%clk 0:01:07]}  Qb4 {[%clk 0:01:14]} 34. Rxc6 {[%clk 0:01:06]}  Qxa4 {[%clk 0:01:13]} 35. Rc7+ {[%clk 0:01:06]}  Ke6 {[%clk 0:01:13]} 36. Rxh7 {[%clk 0:01:05]}  d4 {[%clk 0:01:11]} 37. h5 {[%clk 0:00:59]}  gxh5 {[%clk 0:01:09]} 38. Rxh5 {[%clk 0:01:00]}  Qc2 {[%clk 0:01:07]} 39. c6 {[%clk 0:00:55]}  d3 {[%clk 0:00:53]} 40. Rh6+ {[%clk 0:00:55]}  Kf7 {[%clk 0:00:53]} 41. Rd6 {[%clk 0:00:54]}  d2 {[%clk 0:00:45]} 42. Bxd2 {[%clk 0:00:49]}  Ke7 {[%clk 0:00:44]} 43. Bf4 {[%clk 0:00:49]}  Kf7 {[%clk 0:00:43]} 44. c7 {[%clk 0:00:47]}  Kg7 {[%clk 0:00:40]} 45. Rd7+ {[%clk 0:00:47]}  Kg6 {[%clk 0:00:40]} 46. Rd8 {[%clk 0:00:45]}  Kh5 {[%clk 0:00:37]} 47. c8=Q {[%clk 0:00:41]}  Qxc8 {[%clk 0:00:38]} 48. Rxc8 {[%clk 0:00:41]}  Kg4 {[%clk 0:00:39]} 49. Be2+ {[%clk 0:00:39]}  Kh3 {[%clk 0:00:39]} 50. Rh8# {[%clk 0:00:39]} 1-0


[Site "https://www.chess.com"]

[Event "Titled Tuesday Blitz August 3 2021"]
[White "Miszler, Levente"]
[Black "Dobre, Claudiu-Cristian"]
[WhiteFideId "763276"]
[BlackFideId "1211854"]
[WhiteElo "1967"]
[BlackElo "2259"]
[Result "1/2-1/2"]
[Round "11"]
[TimeControl "180+1"]
[Date "2021.08.03"]
[WhiteClock "0:00:03"]
[BlackClock "0:00:01"]

1. Nf3 {[%clk 0:03:00]}  d5 {[%clk 0:02:57]} 2. c4 {[%clk 0:02:59]}  c6 {[%clk 0:02:57]} 3. d4 {[%clk 0:02:54]}  Nf6 {[%clk 0:02:57]} 4. Nc3 {[%clk 0:02:54]}  e6 {[%clk 0:02:56]} 5. g3 {[%clk 0:02:54]}  Nbd7 {[%clk 0:02:55]} 6. Bg2 {[%clk 0:02:54]}  dxc4 {[%clk 0:02:49]} 7. O-O {[%clk 0:02:53]}  Be7 {[%clk 0:02:43]} 8. e4 {[%clk 0:02:51]}  e5 {[%clk 0:02:44]} 9. dxe5 {[%clk 0:02:31]}  Ng4 {[%clk 0:02:43]} 10. Bf4 {[%clk 0:02:30]}  Qa5 {[%clk 0:02:42]} 11. e6 {[%clk 0:02:02]}  fxe6 {[%clk 0:02:42]} 12. Nd4 {[%clk 0:02:02]}  Nde5 {[%clk 0:02:36]} 13. h3 {[%clk 0:01:52]}  Nf6 {[%clk 0:02:31]} 14. Bxe5 {[%clk 0:01:47]}  Qxe5 {[%clk 0:02:30]} 15. f4 {[%clk 0:01:46]}  Qc7 {[%clk 0:02:20]} 16. e5 {[%clk 0:01:45]}  Nd5 {[%clk 0:02:14]} 17. Ne4 {[%clk 0:01:43]}  O-O {[%clk 0:01:56]} 18. Qh5 {[%clk 0:01:30]}  Qb6 {[%clk 0:01:51]} 19. Rfd1 {[%clk 0:01:23]}  Ne3 {[%clk 0:01:48]} 20. Rd2 {[%clk 0:01:20]}  Nf5 {[%clk 0:01:11]} 21. Rad1 {[%clk 0:01:14]}  Rd8 {[%clk 0:01:04]} 22. Nd6 {[%clk 0:01:07]}  Bxd6 {[%clk 0:00:57]} 23. exd6 {[%clk 0:01:06]}  g6 {[%clk 0:00:47]} 24. Qg5 {[%clk 0:01:06]}  Rxd6 {[%clk 0:00:42]} 25. Qf6 {[%clk 0:01:02]}  Bd7 {[%clk 0:00:35]} 26. Kh2 {[%clk 0:00:53]}  e5 {[%clk 0:00:30]} 27. Qxe5 {[%clk 0:00:45]}  Re8 {[%clk 0:00:29]} 28. Nxf5 {[%clk 0:00:32]}  Rxe5 {[%clk 0:00:29]} 29. Nxd6 {[%clk 0:00:28]}  Re7 {[%clk 0:00:21]} 30. Nxc4 {[%clk 0:00:28]}  Qc7 {[%clk 0:00:21]} 31. Ne5 {[%clk 0:00:27]}  Be6 {[%clk 0:00:21]} 32. Rd6 {[%clk 0:00:20]}  Kg7 {[%clk 0:00:19]} 33. Rxe6 {[%clk 0:00:16]}  Rxe6 {[%clk 0:00:17]} 34. Rd7+ {[%clk 0:00:16]}  Qxd7 {[%clk 0:00:17]} 35. Nxd7 {[%clk 0:00:16]}  Re2 {[%clk 0:00:18]} 36. b3 {[%clk 0:00:14]}  Rxa2 {[%clk 0:00:17]} 37. Nc5 {[%clk 0:00:13]}  b6 {[%clk 0:00:17]} 38. Ne6+ {[%clk 0:00:10]}  Kf6 {[%clk 0:00:18]} 39. Nd4 {[%clk 0:00:11]}  c5 {[%clk 0:00:18]} 40. Nb5 {[%clk 0:00:09]}  a5 {[%clk 0:00:17]} 41. Kg1 {[%clk 0:00:08]}  a4 {[%clk 0:00:16]} 42. bxa4 {[%clk 0:00:06]}  Rxa4 {[%clk 0:00:16]} 43. Bc6 {[%clk 0:00:04]}  Ra2 {[%clk 0:00:16]} 44. Nc3 {[%clk 0:00:04]}  Rc2 {[%clk 0:00:15]} 45. Nd5+ {[%clk 0:00:04]}  Ke6 {[%clk 0:00:15]} 46. Nxb6 {[%clk 0:00:05]}  Kd6 {[%clk 0:00:13]} 47. Bb5 {[%clk 0:00:03]}  Kc7 {[%clk 0:00:09]} 48. Nd5+ {[%clk 0:00:02]}  Kb7 {[%clk 0:00:08]} 49. Ne3 {[%clk 0:00:01]}  Rc3 {[%clk 0:00:08]} 50. Nd5 {[%clk 0:00:02]}  Rxg3+ {[%clk 0:00:08]} 51. Kf2 {[%clk 0:00:01]}  Rxh3 {[%clk 0:00:07]} 52. Ne3 {[%clk 0:00:02]}  Rh2+ {[%clk 0:00:07]} 53. Kf3 {[%clk 0:00:02]}  Rb2 {[%clk 0:00:06]} 54. Bc4 {[%clk 0:00:02]}  Kb6 {[%clk 0:00:06]} 55. Ke4 {[%clk 0:00:03]}  Ka5 {[%clk 0:00:06]} 56. Bg8 {[%clk 0:00:03]}  Rb4+ {[%clk 0:00:06]} 57. Kd5 {[%clk 0:00:03]}  Rd4+ {[%clk 0:00:06]} 58. Kxc5 {[%clk 0:00:03]}  Rxf4 {[%clk 0:00:06]} 59. Bxh7 {[%clk 0:00:03]}  g5 {[%clk 0:00:06]} 60. Kd5 {[%clk 0:00:02]}  Rf3 {[%clk 0:00:06]} 61. Ke4 {[%clk 0:00:02]}  Rf7 {[%clk 0:00:05]} 62. Bf5 {[%clk 0:00:03]}  Kb4 {[%clk 0:00:03]} 63. Kf3 {[%clk 0:00:03]}  Kc3 {[%clk 0:00:03]} 64. Kg4 {[%clk 0:00:03]}  Kd4 {[%clk 0:00:03]} 65. Nc2+ {[%clk 0:00:03]}  Ke5 {[%clk 0:00:02]} 66. Ne3 {[%clk 0:00:02]}  Rg7 {[%clk 0:00:02]} 67. Bd3 {[%clk 0:00:01]}  Rg8 {[%clk 0:00:02]} 68. Bc2 {[%clk 0:00:01]}  Rd8 {[%clk 0:00:02]} 69. Nf5 {[%clk 0:00:01]}  Rc8 {[%clk 0:00:01]} 70. Kxg5 {[%clk 0:00:02]}  Rxc2 {[%clk 0:00:01]} 71. Ng7 {[%clk 0:00:02]}  Rg2+ {[%clk 0:00:01]} 72. Kh6 {[%clk 0:00:02]}  Kf6 {[%clk 0:00:01]} 73. Nh5+ {[%clk 0:00:02]}  Kf7 {[%clk 0:00:01]} 74. Kh7 {[%clk 0:00:02]}  Rh2 {[%clk 0:00:01]} 75. Kh6 {[%clk 0:00:03]} 1/2-1/2


[Site "https://www.chess.com"]